bitfinex-derivatives/quotes_ETHF0:USTF0_20250105
["timestamp","ask_amount","ask_price","bid_price","bid_amount"]
[1736042228622,3.2078,3635.0,3634.9,1.27519243]
[1736042230934,3.2078,3635.0,3634.9,2.11029243]
[1736042231730,3.2078,3635.0,3634.9,1.11025]
[1736042232031,3.2078,3635.0,3634.9,2.11029243]
[1736042234934,3.2078,3635.0,3634.9,2.38549243]
[1736042235527,3.2078,3635.0,3634.9,3.45949243]
[1736042236536,3.00827296,3635.6,3634.9,3.18434243]
[1736042236829,3.00827296,3635.6,3635.5,1.00004243]
[1736042237737,0.8585,3635.6,3635.5,1.00004243]
[1736042238533,0.8585,3635.6,3635.5,1.27514243]
[1736042241531,0.8585,3635.6,3635.5,1.00004243]
[1736042241735,0.8585,3635.6,3635.4,1.27515243]
[1736042242832,3.00827296,3635.6,3635.4,1.27515243]
[1736042243141,0.27511,3635.4,3635.0,0.27514]
[1736042243435,3.2078,3635.3,3635.2,1.00004243]
[1736042244935,3.2078,3635.3,3635.2,1.27516243]
[1736042246043,2.14977296,3635.4,3635.3,0.27512]
[1736042246244,2.14977296,3635.5,3635.2,1.00004243]
[1736042246541,2.14977296,3635.5,3635.4,1.27515243]
[1736042247740,0.8585,3635.6,3635.5,0.2751]
[1736042248140,0.8585,3635.6,3635.5,0.7031]
[1736042249246,0.8585,3635.6,3635.5,1.1449]
[1736042255046,0.8585,3635.6,3635.5,0.7031]
[1736042259147,0.8585,3635.6,3635.5,1.70314243]
[1736042259348,3.2078,3635.7,3635.5,1.42804243]
[1736042259543,3.2078,3635.7,3635.6,0.27509]
[1736042259748,2.14977296,3635.9,3635.8,0.27508]
[1736042259949,2.14977296,3635.9,3635.8,1.27512243]
[1736042260945,0.4102,3636.4,3636.3,0.27504]
[1736042261144,0.4102,3636.4,3636.3,1.27508243]
[1736042263154,0.4102,3636.4,3636.3,1.00004243]
[1736042263353,0.4102,3636.4,3636.3,1.27508243]
[1736042264859,3.2078,3636.7,3636.3,1.00004243]
[1736042265151,3.2078,3636.7,3635.8,4.2818]
[1736042265152,3.2078,3636.7,3636.6,1.27506243]
[1736042267450,0.4442,3636.8,3636.6,1.27506243]
[1736042267650,3.2078,3636.7,3636.6,1.27506243]
[1736042268059,3.2078,3636.7,3636.6,2.27510486]
[1736042269058,3.2078,3636.7,3636.6,1.27506243]
[1736042270057,3.2078,3636.7,3636.6,2.27510486]
[1736042271461,5.15850827,3637.3,3637.2,0.27497]
[1736042271659,2.14977296,3637.3,3637.2,1.00004243]
[1736042271860,2.42474296,3637.3,3637.0,1.00004243]
[1736042272059,3.2078,3637.2,3637.0,1.00004243]
[1736042272454,0.4468,3637.1,3637.0,1.00004243]
[1736042273360,0.8557,3637.1,3637.0,1.00004243]
[1736042274959,0.4468,3637.1,3637.0,1.27503243]
[1736042277464,0.4463,3637.4,3637.0,1.00004243]
[1736042277658,0.4162,3637.3,3636.6,1.00004243]
[1736042277865,0.4162,3637.3,3637.2,0.27497]
[1736042278959,0.4162,3637.3,3637.2,1.27501243]
[1736042279662,0.4162,3637.3,3637.2,1.00004243]
[1736042279962,0.4162,3637.3,3637.2,1.27501243]
[1736042284169,0.4463,3637.4,3637.2,1.00004243]
[1736042284466,3.2078,3637.6,3637.5,0.27495]
[1736042284673,3.2078,3637.6,3637.5,1.27499243]
[1736042290973,2.14977296,3638.3,3638.2,0.2749]
[1736042291175,2.14977296,3638.3,3638.2,1.27494243]
[1736042292367,2.55927296,3638.3,3638.2,1.27494243]
[1736042293170,0.4095,3638.3,3638.2,1.27494243]
[1736042293872,0.415,3638.4,3638.2,1.00004243]
[1736042294174,0.415,3638.4,3638.3,0.71549]
[1736042296573,0.415,3638.4,3638.3,0.4406]
[1736042296773,0.27492,3637.9,3637.4,0.27496]
[1736042297073,4.4548,3637.8,3637.5,0.27494]
[1736042297774,4.4548,3637.8,3637.7,2.21026924]
[1736042300180,3.2078,3637.8,3637.7,2.21026924]
[1736042300483,3.2078,3637.8,3637.7,2.48520924]
[1736042301071,1.2831,3638.1,3637.7,2.21026924]
[1736042301276,1.2831,3638.1,3638.0,2.21026924]
[1736042302077,1.2831,3638.1,3637.7,2.21026924]
[1736042302277,3.2078,3637.8,3637.7,2.21026924]
[1736042304586,3.2078,3637.8,3637.7,2.48520924]
[1736042307984,1.2831,3638.1,3637.7,2.21026924]
[1736042308387,1.2831,3638.1,3638.0,2.48517924]
[1736042310086,4.4909,3638.1,3638.0,2.48517924]
[1736042310676,3.2078,3638.1,3638.0,2.48517924]
[1736042310985,0.4493,3638.3,3638.2,0.2749]
[1736042311191,0.4493,3638.3,3638.2,2.48516924]
[1736042311784,2.14977296,3638.4,3638.2,2.21026924]
[1736042311986,0.4115,3638.5,3638.2,2.21026924]
[1736042312291,0.4115,3638.5,3638.4,0.27488]
[1736042312679,0.4115,3638.5,3638.4,0.68328]
[1736042315286,0.4115,3638.5,3638.2,2.21026924]
[1736042315481,0.4115,3638.5,3638.2,2.48516924]
[1736042315986,0.4115,3638.5,3637.9,6.53327342]
[1736042316191,3.2078,3638.1,3637.9,6.53327342]
[1736042316387,0.8522,3638.0,3637.9,6.80819342]
[1736042316787,0.8522,3638.0,3637.9,2.48518924]
[1736042317690,0.8522,3638.0,3637.9,2.21026924]
[1736042318591,0.8522,3638.0,3637.9,2.48518924]
[1736042319987,0.4429,3638.0,3637.9,2.48518924]
[1736042328702,5.35757296,3638.1,3638.0,0.27491]
[1736042328703,3.2078,3638.1,3638.0,0.27491]
[1736042328898,3.2078,3638.1,3638.0,0.69911]
[1736042329203,3.2078,3638.1,3638.0,1.13071]
[1736042329803,5.36016586,3638.1,3638.0,1.13071]
[1736042330509,3.2078,3638.1,3638.0,5.45371418]
[1736042331803,3.2078,3638.1,3638.0,1.13071]
[1736042333312,3.2078,3638.1,3638.0,5.45371418]
[1736042334696,3.2078,3638.1,3638.0,7.61521627]
[1736042335101,2.15236586,3638.4,3638.0,7.61521627]
[1736042335406,2.15236586,3638.4,3638.3,2.21026924]
[1736042336707,2.15236586,3638.4,3638.3,2.48515924]
[1736042337906,6.43245944,3638.5,3638.4,0.27488]
[1736042338711,3.2078,3638.5,3638.4,0.27488]
[1736042339808,3.66745944,3638.6,3638.4,0.27488]
[1736042340111,3.2078,3638.5,3638.4,0.27488]
[1736042340609,5.36092944,3638.5,3638.3,2.21026924]
[1736042340801,5.36092944,3638.5,3638.4,0.27488]
[1736042341906,3.2078,3638.5,3638.4,0.27488]
[1736042344516,2.1530598,3638.6,3638.5,0.27487]
[1736042344914,2.1530598,3638.7,3638.6,0.27487]
[1736042345113,2.1530598,3638.7,3638.6,2.48513924]
[1736042346118,2.1530598,3638.9,3638.8,0.27485]
[1736042347322,2.5687598,3639.1,3639.0,0.27484]
[1736042347820,2.5687598,3639.1,3638.9,0.27484]
[1736042348012,2.5687598,3639.1,3639.0,0.27484]
[1736042349218,2.1530598,3639.1,3639.0,0.27484]
[1736042349624,2.1530598,3639.1,3639.0,2.48510924]
[1736042350118,2.1530598,3639.2,3639.1,0.27483]
[1736042350318,2.1530598,3639.2,3639.1,1.7120232]
[1736042351517,0.8469,3639.3,3639.1,1.7120232]
[1736042352518,0.8469,3639.3,3639.2,0.27482]
[1736042353222,2.1530598,3639.5,3639.2,0.27482]
[1736042353423,0.8416,3639.4,3639.2,0.27482]
[1736042353617,0.8416,3639.4,3639.1,0.71522]
[1736042354414,0.8416,3639.4,3639.1,0.4404]
[1736042354614,0.8416,3639.4,3639.2,0.27482]
[1736042354813,0.8416,3639.4,3639.3,0.9967932]
[1736042357218,0.8416,3639.4,3638.8,4.32194461]
[1736042357419,3.48263,3639.2,3638.8,5.31873781]
[1736042358824,3.48263,3639.2,3638.8,0.9967932]
[1736042360221,3.48263,3639.2,3639.1,0.9967932]
[1736042361323,5.6356898,3639.2,3639.1,0.9967932]
[1736042362924,5.3608598,3639.2,3639.1,0.9967932]
[1736042364427,3.2078,3639.2,3639.1,0.9967932]
[1736042365723,3.2078,3639.2,3638.4,4.32194461]
[1736042365931,3.2078,3638.8,3638.7,0.9967932]
[1736042366324,4.4696,3638.8,3638.7,0.9967932]
[1736042366927,4.74445,3638.8,3638.7,0.9967932]
[1736042367433,5.4663932,3638.8,3638.2,4.32194461]
[1736042367731,5.4663932,3638.8,3638.0,6.48450627]
[1736042367732,3.48269,3638.3,3638.0,5.31873781]
[1736042368032,1.2666,3638.2,3638.0,5.31873781]
[1736042368227,1.2666,3638.2,3638.0,4.32194461]
[1736042368933,1.2666,3638.2,3637.9,0.27492]
[1736042369234,1.2666,3638.2,3637.7,2.21091719]
[1736042369531,1.2666,3638.2,3638.0,0.27491]
[1736042371027,1.2666,3638.2,3637.7,2.21091719]
[1736042371226,1.2666,3638.2,3637.9,0.27491]
[1736042373036,3.2078,3638.1,3637.9,0.27491]
[1736042375039,1.2666,3638.2,3637.9,0.27491]
[1736042375336,3.2078,3638.1,3637.9,0.27491]
[1736042376638,3.2078,3638.1,3637.7,2.21091719]
[1736042376831,3.2078,3638.1,3637.8,0.27493]
[1736042378239,3.2078,3638.1,3637.7,2.21091719]
[1736042378437,3.2078,3638.1,3637.8,0.27492]
[1736042378640,3.2078,3638.1,3637.7,2.21091719]
[1736042378939,3.2078,3638.1,3637.8,0.27493]
[1736042379431,3.2078,3638.1,3637.7,2.21091719]
[1736042379636,0.27491,3638.0,3637.7,2.21091719]
[1736042379833,3.2078,3638.1,3637.7,2.21091719]
[1736042380041,0.27492,3637.9,3637.6,0.4327]
[1736042380227,3.2078,3637.7,3637.4,6.8078118]
[1736042380432,3.2078,3637.7,3637.6,0.4132]
[1736042381033,3.6288,3637.7,3637.6,0.4132]
[1736042390354,3.6288,3637.7,3637.6,1.41107943]
[1736042394656,3.6288,3637.7,3637.6,0.99787943]
[1736042395155,0.421,3637.7,3637.6,0.99787943]
[1736042395456,3.6288,3637.7,3637.6,0.99787943]
[1736042395944,3.6288,3637.7,3637.5,0.4064]
[1736042396148,0.4125,3637.6,3637.5,0.68135]
[1736042400256,0.4125,3637.6,3637.5,1.67922943]
[1736042400663,0.4125,3637.6,3637.5,1.40427943]
[1736042400854,0.4125,3637.6,3637.5,1.67922943]
[1736042401858,0.4125,3637.6,3637.5,0.99787943]
[1736042402763,0.8542,3637.6,3637.5,0.99787943]
[1736042403467,1.12914,3637.6,3637.5,0.99787943]
[1736042403660,0.8542,3637.6,3637.5,0.99787943]
[1736042408153,0.4125,3637.6,3637.5,0.99787943]
[1736042408460,0.4125,3637.6,3637.5,1.27282943]
[1736042413461,2.5655598,3637.6,3637.5,1.27282943]
[1736042416963,0.4125,3637.6,3637.5,1.27282943]
[1736042417158,6.85345944,3637.7,3637.5,0.99787943]
[1736042417359,6.43245944,3637.7,3637.6,0.27494]
[1736042417568,3.22465944,3637.7,3637.6,0.27494]
[1736042418072,4.29954592,3637.9,3637.6,0.27494]
[1736042418073,4.29954592,3637.9,3637.6,3.2078]
[1736042418261,4.29954592,3637.9,3637.8,1.27280943]
[1736042418570,2.15428771,3638.0,3637.9,0.27492]
[1736042418772,2.15428771,3638.0,3637.9,1.27279943]
[1736042419467,1.88338771,3638.0,3637.9,1.27279943]
[1736042419862,0.8626,3638.9,3638.3,0.27489]
[1736042419863,1.88338771,3638.4,3638.3,0.27489]
[1736042420262,1.88338771,3638.4,3638.3,1.27276943]
[1736042421061,0.4316,3638.9,3638.6,0.27487]
[1736042421265,0.4316,3638.9,3638.6,1.27274943]
[1736042421460,7.50734592,3639.0,3638.6,1.99575886]
[1736042421660,7.50734592,3639.0,3638.4,0.0153]
[1736042421661,4.29954592,3639.0,3638.9,1.27271943]
[1736042422666,0.4096,3639.3,3639.0,0.27483]
[1736042422867,0.4096,3639.3,3639.2,0.99787943]
[1736042423674,0.4096,3639.3,3639.1,0.99787943]
[1736042423675,0.27483,3639.2,3639.1,0.99787943]
[1736042424373,1.40747943,3639.3,3638.7,4.31867996]
[1736042424568,0.27484,3639.0,3638.8,0.99787943]
[1736042424770,0.862,3638.9,3638.8,0.99787943]
[1736042426266,0.862,3638.9,3638.5,2.20993277]
[1736042426469,0.4061,3638.8,3638.6,0.27487]
[1736042427576,0.4061,3638.8,3638.5,2.48480277]
[1736042428066,0.4061,3638.8,3638.5,2.20993277]
[1736042428274,3.2078,3638.6,3638.5,2.20993277]
[1736042435680,3.2078,3638.6,3638.5,2.48480277]
[1736042436482,0.4061,3638.8,3638.5,2.20993277]
[1736042436683,0.4061,3638.8,3638.6,0.27486]
[1736042437085,0.4061,3638.8,3638.7,0.27486]
[1736042440077,0.4269,3638.9,3638.5,2.20993277]
[1736042440285,0.4269,3638.9,3638.8,2.48478277]
[1736042440686,0.839,3638.9,3638.8,2.48478277]
[1736042442087,0.839,3638.9,3638.5,2.20993277]
[1736042442288,0.4358,3638.8,3638.5,2.48480277]
[1736042442684,0.4358,3638.8,3638.2,2.20993277]
[1736042442685,3.2078,3638.6,3638.2,2.20993277]
[1736042443085,3.48267,3638.6,3638.2,2.20993277]
[1736042443286,3.48267,3638.6,3638.2,2.48483277]
[1736042443483,3.48267,3638.6,3638.2,2.20993277]
[1736042443788,3.2078,3638.6,3638.2,2.20993277]
[1736042444185,3.2078,3638.6,3638.3,0.27489]
[1736042444586,3.2078,3638.6,3638.2,2.20993277]
[1736042444788,3.2078,3638.6,3638.2,2.48483277]
[1736042446291,3.2078,3638.6,3638.3,0.27489]
[1736042446792,3.2078,3638.6,3638.2,2.20993277]
[1736042446985,3.2078,3638.6,3638.5,2.48480277]
[1736042448880,0.4269,3638.9,3638.8,0.27485]
[1736042449187,3.2078,3639.0,3638.9,0.27484]
[1736042449493,0.8314,3639.4,3639.3,0.27481]
[1736042450292,0.8314,3639.4,3639.3,2.48474277]
[1736042450494,0.4159,3639.4,3639.3,2.48474277]
[1736042451589,0.4159,3639.4,3639.0,2.20993277]
[1736042451792,3.2078,3639.2,3638.7,6.52861273]
[1736042452092,0.27483,3639.1,3638.7,6.52861273]
[1736042452489,3.2078,3639.2,3638.7,6.52861273]
[1736042453193,3.48263,3639.2,3638.7,6.80347273]
[1736042453386,3.2078,3639.2,3638.7,6.52861273]
[1736042453588,3.2078,3639.2,3638.8,0.27485]
[1736042454896,3.2078,3639.2,3638.9,0.27484]
[1736042455395,3.2078,3639.2,3638.7,2.20993277]
[1736042455696,3.2078,3639.2,3638.9,0.27484]
[1736042456090,3.48262,3639.2,3638.8,0.27485]
[1736042456584,3.2078,3639.2,3638.7,2.20993277]
[1736042456789,3.2078,3639.2,3638.8,0.27485]
[1736042457194,3.48263,3639.2,3638.7,2.48478277]
[1736042457393,3.48263,3639.2,3638.7,2.48479277]
[1736042457691,0.27483,3639.1,3638.7,2.48479277]
[1736042457896,0.4435,3639.0,3638.7,2.48479277]
[1736042458097,0.4435,3639.0,3638.7,2.20993277]
[1736042459195,0.4435,3639.0,3638.7,2.48479277]
[1736042459997,0.71834,3639.0,3638.7,2.20993277]
[1736042460293,0.4435,3639.0,3638.7,2.48479277]
[1736042460701,0.4435,3639.0,3638.7,2.20993277]
[1736042460900,0.4435,3639.0,3638.8,0.27485]
[1736042463298,0.4435,3639.0,3638.7,2.20993277]
[1736042464192,0.71834,3639.0,3638.7,2.20993277]
[1736042465593,0.4162,3638.9,3638.7,2.20993277]
[1736042465896,4.03641127,3638.9,3638.7,2.48479277]
[1736042466799,3.624,3638.9,3638.7,2.20993277]
[1736042467905,3.624,3638.9,3638.7,2.48479277]
[1736042469110,3.624,3638.9,3638.7,2.20993277]
[1736042469705,3.624,3638.9,3638.7,2.48479277]
[1736042470306,3.624,3638.9,3638.8,0.27485]
[1736042471606,0.4162,3638.9,3638.8,0.27485]
[1736042472003,4.29954592,3639.2,3639.1,0.27483]
[1736042472308,4.29954592,3639.2,3639.1,2.48476277]
[1736042473600,0.4162,3639.3,3639.2,0.27482]
[1736042473905,3.2078,3639.4,3639.1,2.20993277]
[1736042474104,3.2078,3639.4,3639.3,0.27481]
[1736042475705,3.2078,3639.4,3639.2,4.59546986]
[1736042475904,3.2078,3639.4,3639.3,0.27481]
[1736042476301,3.2078,3639.4,3639.3,4.59545986]
[1736042476708,0.8598,3639.7,3639.3,4.59545986]
[1736042476709,0.8598,3639.7,3639.5,0.2748]
[1736042477213,0.8598,3639.7,3639.6,0.27479]
[1736042478804,0.8598,3639.7,3639.4,2.20993277]
[1736042479109,4.08869023,3639.7,3639.5,0.2748]
[1736042479307,4.08869023,3639.7,3639.6,0.27479]
[1736042479703,4.08869023,3639.7,3639.5,0.2748]
[1736042479903,4.08869023,3639.7,3639.6,0.27479]
[1736042480606,4.08869023,3639.7,3639.6,0.27227732]
[1736042481112,4.08869023,3639.7,3639.4,2.20993277]
[1736042481310,4.08869023,3639.7,3639.5,0.2748]
[1736042481510,0.8598,3639.7,3639.4,2.20993277]
[1736042481709,0.8598,3639.7,3639.5,0.2748]
[1736042481907,0.8598,3639.7,3639.6,0.27479]
[1736042485918,0.8598,3639.7,3639.4,2.20993277]
[1736042486111,0.8598,3639.7,3639.6,0.27479]
[1736042487914,0.8598,3639.7,3639.5,0.2748]
[1736042488112,0.8598,3639.7,3639.6,0.27479]
[1736042488316,0.8598,3639.7,3639.6,1.27162172]
[1736042491717,3.22889023,3639.8,3639.7,0.27478]
[1736042494016,1.3079,3640.1,3639.8,0.27478]
[1736042495616,1.3079,3640.1,3639.6,6.52924691]
[1736042495817,1.3079,3640.1,3639.9,0.27476]
[1736042498426,1.3079,3640.1,3639.7,0.27478]
[1736042498812,1.3079,3640.1,3639.6,2.20859705]
[1736042499124,1.3079,3640.1,3639.8,0.27477]
[1736042499922,1.3079,3640.1,3639.9,2.48335705]
[1736042501127,1.3079,3640.1,3639.9,2.20859705]
[1736042501424,1.3079,3640.1,3640.0,0.27476]
[1736042502819,1.3079,3640.1,3639.9,2.20859705]
[1736042503426,1.3079,3640.1,3639.9,2.48335705]
[1736042503629,0.4374,3640.1,3639.9,2.20859705]
[1736042503823,0.4346,3640.0,3639.9,2.48336705]
[1736042506225,0.4374,3640.1,3639.9,2.20859705]
[1736042506427,0.4374,3640.1,3640.0,0.27476]
[1736042506920,0.4374,3640.1,3640.0,2.48335705]
[1736042508324,0.4374,3640.1,3640.0,2.20859705]
[1736042508526,0.4374,3640.1,3640.0,2.48335705]
[1736042516333,0.4374,3640.1,3640.0,1.27130718]
[1736042519747,0.4374,3640.1,3640.0,0.27476]
[1736042520637,0.4374,3640.1,3640.0,1.27130718]
[1736042521745,0.4374,3640.1,3640.0,0.27476]
[1736042526243,0.4374,3640.1,3640.0,4.59540986]
[1736042528348,0.4374,3640.1,3640.0,0.27476]
[1736042532043,0.4374,3640.1,3640.0,6.75624657]
[1736042533553,3.66349023,3640.5,3640.0,6.48148657]
[1736042533853,0.8191,3640.4,3640.3,0.27474]
[1736042535143,0.8191,3640.4,3640.3,4.59521002]
[1736042535351,0.8191,3640.4,3640.3,5.5917572]
[1736042537748,0.8191,3640.4,3640.3,1.27128718]
[1736042541052,2.97254533,3640.4,3640.3,5.59284393]
[1736042542948,2.97254533,3640.4,3640.3,4.32155675]
[1736042543149,2.97254533,3640.4,3640.3,3.64785675]
[1736042544652,5.53090419,3640.4,3640.2,1.27128718]
[1736042544847,3.2078,3640.3,3640.2,1.27128718]
[1736042545345,3.2078,3640.3,3640.2,0.99654718]
[1736042545545,3.2078,3640.3,3640.2,1.27129718]
[1736042545754,6.85053054,3640.3,3640.2,1.27129718]
[1736042547350,3.2078,3640.3,3640.2,1.27129718]
[1736042548448,6.43827227,3640.3,3640.2,1.27129718]
[1736042550749,6.85051391,3640.3,3640.2,1.27129718]
[1736042550950,6.85051391,3640.3,3640.0,6.48070504]
[1736042551159,0.27475,3640.1,3640.0,5.80690504]
[1736042551458,0.27475,3640.1,3640.0,5.13310504]
[1736042551851,5.0,3640.1,3639.8,8.6419821]
[1736042552053,4.47911718,3639.9,3639.8,8.6419821]
[1736042552559,4.47911718,3639.9,3639.3,0.99654718]
[1736042552560,0.27479,3639.7,3639.3,0.99654718]
[1736042552759,3.2078,3639.4,3639.3,0.99654718]
[1736042553559,6.43750826,3639.4,3639.3,0.99654718]
[1736042553950,6.43750826,3639.4,3639.3,1.27135718]
[1736042554762,3.2078,3639.4,3639.3,1.27135718]
[1736042555764,2.15268939,3639.6,3639.5,0.2748]
[1736042555964,2.15268939,3639.7,3639.5,0.99654718]
[1736042556153,2.15268939,3639.7,3639.6,0.72059]
[1736042557661,2.15268939,3639.8,3639.7,0.27478]
[1736042567974,6.43750826,3639.9,3639.7,0.27478]
[1736042568374,6.43750826,3639.9,3639.6,0.72059]
[1736042568671,6.43750826,3639.9,3639.6,0.4458]
[1736042568872,6.71227826,3639.9,3639.6,0.4458]
[1736042569072,2.15102212,3639.7,3639.6,0.4458]
[1736042569674,0.27483,3639.2,3638.9,2.2087145]
[1736042569869,3.48263,3639.2,3638.9,3.0689145]
[1736042570171,0.4465,3639.1,3638.9,3.0689145]
[1736042571068,0.27484,3639.0,3638.6,8.6419821]
[1736042571268,3.48266,3638.7,3638.6,8.6419821]
[1736042571764,0.27489,3638.3,3638.2,8.6419821]
[1736042572080,3.48269,3638.3,3638.2,8.6419821]
[1736042573470,3.48269,3638.3,3638.1,0.4299]
[1736042573972,4.37429,3638.3,3638.1,0.4299]
[1736042574167,4.0994,3638.3,3638.1,0.4299]
[1736042574972,4.37429,3638.3,3638.1,0.4299]
[1736042575175,0.2749,3638.2,3638.1,0.4299]
[1736042575475,4.37429,3638.3,3638.1,0.4299]
[1736042575668,4.0994,3638.3,3638.1,0.4299]
[1736042576973,3.2078,3638.3,3638.1,0.4299]
[1736042577172,3.2078,3638.3,3638.2,0.2749]
[1736042582481,0.27484,3639.0,3638.2,0.7154]
[1736042582783,3.48264,3639.0,3638.5,2.2087145]
[1736042583185,3.2078,3639.0,3638.6,0.406]
[1736042583385,0.27484,3638.9,3638.6,0.406]
[1736042584187,3.2078,3639.0,3638.6,0.68086]
[1736042584388,3.2078,3639.0,3638.6,0.406]
[1736042584588,3.2078,3639.0,3638.7,0.27486]
[1736042584789,3.2078,3639.0,3638.8,0.4052]
[1736042585791,3.48264,3639.0,3638.8,0.4052]
[1736042587295,3.2078,3639.0,3638.8,0.4052]
[1736042595796,3.2078,3639.0,3638.8,0.68005]
[1736042596092,3.2078,3639.0,3638.8,0.4052]
[1736042596492,3.2078,3639.0,3638.8,0.68005]
[1736042598991,3.48262,3639.2,3638.8,0.68005]
[1736042600299,3.48262,3639.2,3638.9,0.99727289]
[1736042600894,3.48263,3639.1,3638.9,0.99727289]
[1736042601295,0.4224,3639.0,3638.9,0.99727289]
[1736042602792,0.69724,3639.0,3638.8,0.4052]
[1736042602998,0.69724,3639.0,3638.5,0.99727289]
[1736042602999,0.68854,3638.9,3638.5,0.99727289]
[1736042604494,0.68854,3638.9,3638.4,0.27488]
[1736042604993,0.4137,3638.9,3638.4,0.27488]
[1736042605195,0.4137,3638.9,3638.3,0.8637]
[1736042605400,0.68855,3638.9,3638.5,0.27487]
[1736042606298,0.68855,3638.9,3638.3,0.8637]
[1736042606299,3.48267,3638.6,3638.3,0.4331]
[1736042606499,3.2078,3638.6,3638.3,0.4331]
[1736042606801,0.4313,3638.5,3638.3,0.70799]
[1736042609597,3.2078,3638.6,3638.3,0.4331]
[1736042609806,3.2078,3638.6,3638.5,0.27487]
[1736042610393,2.1500409,3638.7,3638.5,0.27487]
[1736042610692,3.2078,3638.6,3638.5,0.27487]
[1736042613201,3.2078,3638.6,3638.5,2.48521718]
[1736042619206,2.1500409,3638.8,3638.5,2.48521718]
[1736042619207,1.4759409,3638.8,3638.7,0.27486]
[1736042619401,0.1277409,3638.8,3638.7,0.27486]
[1736042619807,0.1277409,3638.8,3638.7,0.70666]
[1736042620710,6.43286136,3639.4,3638.7,0.4318]
[1736042621000,6.43286136,3639.4,3639.3,0.27481]
[1736042622507,6.43286136,3639.4,3639.3,0.70021]
[1736042622814,6.84521166,3639.4,3639.3,0.70021]
[1736042623816,6.84521166,3639.4,3639.3,0.4254]
[1736042625712,3.63741166,3639.4,3639.3,0.4254]
[1736042626309,3.63741166,3639.4,3639.3,0.70021]
[1736042626616,4.07571166,3639.4,3639.3,0.70021]
[1736042627915,3.63741166,3639.4,3639.3,0.70021]
[1736042628316,3.63741166,3639.4,3639.3,1.11411]
[1736042628612,1.75141166,3639.4,3639.3,1.11411]
[1736042628817,1.75141166,3639.4,3639.3,2.18611]
[1736042629008,1.33906136,3639.6,3639.3,1.9113]
[1736042629209,1.33906136,3639.6,3639.5,2.48514718]
[1736042630222,4.74547769,3639.8,3639.7,0.27478]
[1736042630223,0.4392,3639.8,3639.7,0.27478]
[1736042633016,0.8835,3639.8,3639.7,0.27478]
[1736042636521,1.2968,3639.8,3639.7,0.27478]
[1736042639114,1.2968,3639.8,3639.5,2.21034718]
[1736042639320,1.2968,3639.8,3639.5,2.48514718]
[1736042639833,1.57158,3639.8,3639.5,2.21034718]
[1736042640024,1.2968,3639.8,3639.5,2.21034718]
[1736042640223,1.2968,3639.8,3639.7,0.99685763]
[1736042640421,1.57158,3639.8,3639.7,0.99685763]
[1736042640616,1.2968,3639.8,3639.7,0.99685763]
[1736042641826,4.5046,3639.8,3639.7,0.99685763]
[1736042642220,4.5046,3639.8,3639.5,0.2748]
[1736042643115,4.5046,3639.8,3639.3,2.63435217]
[1736042643320,4.77938,3639.8,3639.4,0.27481]
[1736042643728,4.5046,3639.8,3639.4,0.27481]
[1736042644226,0.27479,3639.7,3639.2,0.27482]
[1736042644419,0.27479,3639.7,3639.0,8.69025304]
[1736042644420,3.2078,3639.4,3639.3,0.27481]
[1736042644623,3.2078,3639.4,3639.3,2.48376217]
[1736042646629,1.2968,3639.8,3639.3,2.20895217]
[1736042646830,1.2968,3639.8,3639.5,0.27479]
[1736042647724,1.2968,3639.8,3639.3,2.20895217]
[1736042647925,1.2968,3639.8,3639.6,0.27479]
[1736042648526,1.2968,3639.8,3639.4,0.4186]
[1736042648726,1.2968,3639.8,3639.5,0.2748]
[1736042649325,1.2968,3639.8,3639.6,0.27479]
[1736042650627,1.57158,3639.8,3639.4,0.70471]
[1736042650828,3.2078,3639.5,3639.2,0.27482]
[1736042651131,3.2078,3639.5,3639.3,0.27481]
[1736042651735,3.2078,3639.5,3638.9,6.48130087]
[1736042651935,3.2078,3639.0,3638.9,6.48130087]
[1736042652432,3.2078,3639.0,3638.6,7.18496087]
[1736042652627,1.2603,3638.9,3638.6,7.18496087]
[1736042653835,1.2603,3638.9,3638.6,0.70366]
[1736042657135,3.2078,3639.0,3638.9,0.27484]
[1736042659537,3.2078,3639.0,3638.8,0.4403]
[1736042659738,3.2078,3639.0,3638.7,2.20895217]
[1736042660034,0.70275,3638.9,3638.7,2.20895217]
[1736042660231,0.4288,3638.8,3638.7,2.20895217]
[1736042660431,0.8669,3638.8,3638.7,2.20895217]
[1736042662740,1.14175,3638.8,3638.6,0.4288]
[1736042663038,1.14175,3638.8,3638.4,2.89103217]
[1736042663543,0.8669,3638.8,3638.4,2.89103217]
[1736042663834,1.14176,3638.8,3638.4,2.89103217]
[1736042664132,0.8669,3638.8,3638.4,2.61615217]
[1736042664337,0.8669,3638.8,3638.5,0.27487]
[1736042665536,0.8669,3638.8,3638.4,2.61615217]
[1736042665741,0.8669,3638.8,3638.4,2.89103217]
[1736042668129,0.8669,3638.8,3638.4,2.61615217]
[1736042668336,0.8669,3638.8,3638.5,0.27487]
[1736042669843,1.14175,3638.8,3638.4,2.89103217]
[1736042670038,0.8669,3638.8,3638.4,2.89103217]
[1736042671740,0.8669,3638.8,3638.5,0.27487]
[1736042672939,1.14175,3638.8,3638.4,2.89103217]
[1736042673242,0.8669,3638.8,3638.4,2.89103217]
[1736042673443,0.8669,3638.8,3638.5,0.27487]
[1736042674242,0.8669,3638.8,3638.7,0.99737316]
[1736042678643,1.14175,3638.8,3638.7,0.99737316]
[1736042678844,0.8669,3638.8,3638.7,0.99737316]
[1736042682544,4.0747,3638.8,3638.7,0.99737316]
[1736042684646,0.27486,3638.7,3638.5,0.99737316]
[1736042685466,4.0747,3638.8,3638.5,0.99737316]
[1736042685467,4.34956,3638.8,3638.5,0.99737316]
[1736042686963,4.34956,3638.8,3638.5,1.27224316]
[1736042687262,4.34955,3638.8,3638.5,0.99737316]
[1736042688660,4.0747,3638.8,3638.5,0.99737316]
[1736042688859,0.27486,3638.7,3638.5,0.99737316]
[1736042689659,4.0747,3638.8,3638.5,0.99737316]
[1736042689867,0.27487,3638.7,3638.5,0.99737316]
[1736042696071,3.21910561,3638.6,3638.5,0.99737316]
[1736042697274,3.63154585,3638.6,3638.5,0.99737316]